bitfinex-derivatives/quotes_SOLF0:USTF0_20250124
["timestamp","ask_amount","ask_price","bid_price","bid_amount"]
[1737738179374,0.67989033,262.64,262.51,3.74463516]
[1737738179573,2.86,262.65,262.39,3.8083]
[1737738179574,0.0248895,262.53,262.48,3.74463516]
[1737738179768,3.8078,262.58,262.48,3.74463516]
[1737738180169,0.02620039,262.53,262.48,3.76873517]
[1737738180476,0.02620039,262.53,262.48,0.02410001]
[1737738180875,261.86507399,262.53,262.49,0.12178653]
[1737738181378,261.86507399,262.53,262.48,0.02410001]
[1737738181575,261.86507399,262.53,262.43,3.74050532]
[1737738181774,261.86507399,262.53,262.44,3.74050532]
[1737738182182,261.86507399,262.53,262.38,14.50549368]
[1737738182376,261.86507399,262.53,262.41,3.8101]
[1737738182682,261.86507399,262.53,262.38,14.50549368]
[1737738182876,265.67357399,262.53,262.44,0.02510512]
[1737738183372,261.86507399,262.53,262.49,3.8089]
[1737738183578,261.86507399,262.53,262.45,8.82480143]
[1737738183579,261.86507399,262.53,262.44,0.02510512]
[1737738183778,261.86507399,262.53,262.45,8.81909761]
[1737738183979,0.02620039,262.53,262.46,8.81909761]
[1737738184175,0.02620039,262.53,262.47,19.6033745]
[1737738184372,0.02620039,262.53,262.48,8.81909928]
[1737738184572,0.02620039,262.53,262.49,8.81909928]
[1737738184777,0.02620039,262.53,262.5,12.12128258]
[1737738185083,0.02620039,262.53,262.51,7.22907511]
[1737738185284,0.02620039,262.53,262.52,7.22907511]
[1737738185779,0.02620039,262.53,262.5,0.02736907]
[1737738186083,0.02620039,262.53,262.51,7.22614026]
[1737738186279,0.02620039,262.53,262.49,0.02881539]
[1737738186684,0.02620039,262.53,262.5,3.05548551]
[1737738186886,0.02620039,262.53,262.51,3.05548551]
[1737738187184,0.02620039,262.53,262.52,3.05548551]
[1737738187580,0.02620039,262.53,262.52,3.05477597]
[1737738188187,0.02620039,262.53,262.52,3.05447264]
[1737738188378,0.02620039,262.53,262.52,13.68751363]
[1737738189987,0.02620039,262.53,262.52,18.57098117]
[1737738190190,0.02620039,262.53,262.52,18.56867077]
[1737738190681,0.02620039,262.53,262.52,13.68520629]
[1737738191289,0.02620039,262.53,262.49,0.02881539]
[1737738191495,3.8087,262.52,262.49,0.02881539]
[1737738191685,0.02620039,262.53,262.38,14.50549368]
[1737738191889,3.8094,262.47,262.38,14.50549368]
[1737738192192,1.3155,262.57,262.33,14.50549368]
[1737738192391,0.67986644,262.56,262.33,14.50549368]
[1737738192892,1.2086,262.55,262.33,14.50549368]
[1737738193085,0.0247833,262.48,262.42,0.02425114]
[1737738196294,3.8339833,262.48,262.42,0.02425114]
[1737738196594,0.0247833,262.48,262.42,0.02425114]
[1737738197294,3.8340833,262.48,262.42,0.02425114]
[1737738197490,0.0247833,262.48,262.42,0.02425114]
[1737738198695,0.0247833,262.48,262.42,3.83425114]
[1737738198895,0.0247833,262.48,262.42,0.02425114]
[1737738199096,0.0247833,262.48,262.44,3.8098]
[1737738199298,0.0247833,262.48,262.42,0.02425114]
[1737738200292,3.8096,262.45,262.42,0.02425114]
[1737738200498,3.8096,262.45,262.36,3.61973114]
[1737738200797,0.0247833,262.48,262.33,14.50549368]
[1737738201097,3.8095,262.46,262.37,3.8108]
[1737738201497,1.2086,262.55,262.33,14.50549368]
[1737738201699,0.02614409,262.44,262.39,0.02924608]
[1737738201996,3.8098,262.45,262.37,9.06094463]
[1737738202196,0.02520162,262.44,262.39,0.02693882]
[1737738205200,3.83500162,262.44,262.39,0.02693882]
[1737738205497,0.02520162,262.44,262.39,0.02693882]
[1737738206200,3.8102,262.42,262.39,0.02693882]
[1737738206501,0.02520162,262.44,262.39,0.02693882]
[1737738207801,0.02520162,262.44,262.42,3.81]
[1737738208300,0.02520162,262.44,262.43,3.8099]
[1737738208502,2.86,262.49,262.43,7.02675567]
[1737738208802,2.86,262.49,262.46,3.8094]
[1737738208997,2.86,262.49,262.41,9.06094463]
[1737738209206,2.86,262.49,262.42,18.28161715]
[1737738209502,2.86,262.49,262.43,24.12379788]
[1737738209701,0.02434452,262.48,262.44,31.67494382]
[1737738209897,0.02434452,262.48,262.45,24.12379788]
[1737738210098,0.02434452,262.48,262.46,24.12379788]
[1737738210293,0.02434452,262.48,262.44,3.74144594]
[1737738210294,0.02434452,262.48,262.47,17.38073081]
[1737738210504,2.545,262.59,262.47,24.13640003]
[1737738210704,5.405,262.59,262.48,24.13638787]
[1737738210904,2.545,262.59,262.49,17.38073081]
[1737738211104,2.545,262.59,262.5,24.13575348]
[1737738211398,2.545,262.59,262.51,24.13575348]
[1737738211600,0.02720115,262.57,262.55,3.74144594]
[1737738211802,0.68073646,262.62,262.56,46.29448925]
[1737738212002,0.68073646,262.62,262.57,40.45230852]
[1737738212305,0.68069167,262.61,262.58,46.55994776]
[1737738212505,2.86,262.63,262.44,19.18358084]
[1737738212506,3.8074,262.6,262.59,35.94514965]
[1737738212805,4.48801275,262.6,262.59,35.94514965]
[1737738213006,4.48801275,262.6,262.59,23.31149737]
[1737738213504,0.68061275,262.6,262.57,0.02826868]
[1737738213698,3.8077,262.58,262.57,0.02826868]
[1737738214606,3.8086,262.52,262.49,3.74144594]
[1737738214806,7.23994574,262.51,262.47,3.96903594]
[1737738215006,7.23994574,262.5,262.47,3.96903594]
[1737738215207,7.23994574,262.49,262.48,9.9449348]
[1737738215607,14.49325735,262.62,262.48,25.7048735]
[1737738215811,0.68042709,262.61,262.56,3.78182031]
[1737738216013,0.02792549,262.58,262.57,10.08579579]
[1737738216214,6.69562549,262.58,262.57,6.30397548]
[1737738216415,3.56835258,262.58,262.57,6.31234911]
[1737738216616,3.56835258,262.58,262.57,28.152319]
[1737738216813,7.37605258,262.58,262.57,28.152319]
[1737738217306,6.69562549,262.58,262.57,24.36557845]
[1737738217511,6.69562549,262.58,262.57,18.05322934]
[1737738217718,6.69562549,262.58,262.57,3.82497492]
[1737738219018,6.69562549,262.58,262.57,2.33987492]
[1737738219519,6.69562549,262.58,262.57,8.63689008]
[1737738219810,6.69562549,262.58,262.57,2.26429008]
[1737738220017,6.69562549,262.58,262.57,9.008e-05]
[1737738220212,2.88792549,262.58,262.56,0.02833471]
[1737738220412,3.8079,262.57,262.56,0.02833471]
[1737738221113,0.02792549,262.58,262.56,0.02833471]
[1737738223522,0.02792549,262.58,262.57,6.74797953]
[1737738224617,14.49325735,262.78,262.57,24.89107114]
[1737738224814,2.86,262.78,262.6,14.49325735]
[1737738225012,2.86,262.78,262.66,3.8066]
[1737738225218,2.86,262.78,262.67,20.14604097]
[1737738225418,2.86,262.8,262.68,22.94455341]
[1737738225614,2.86,262.81,262.7,3.83439329]
[1737738225920,2.86,262.82,262.71,46.38567483]
[1737738226120,2.86,262.82,262.72,46.38567483]
[1737738226325,2.86,262.82,262.73,40.36371229]
[1737738226522,2.86,262.81,262.75,4.72852192]
[1737738226816,10.49932841,262.83,262.78,3.78810107]
[1737738227025,0.02822577,262.81,262.79,35.19688637]
[1737738227323,0.02822577,262.81,262.8,35.19688637]
[1737738227518,0.7100078,262.81,262.8,35.19688637]
[1737738227825,0.02822577,262.81,262.8,8.26665752]
[1737738228423,0.02822577,262.81,262.8,2.8040109]
[1737738228623,0.02822577,262.81,262.75,0.02889872]
[1737738228823,0.02822577,262.81,262.76,8.38766925]
[1737738229026,0.02822577,262.81,262.77,8.38766925]
[1737738229223,0.02822577,262.81,262.78,8.38766925]
[1737738229423,3.8046,262.8,262.79,3.25713151]
[1737738229726,0.68175406,262.8,262.75,0.02889872]
[1737738229926,0.02822577,262.81,262.75,0.02889872]
[1737738229927,0.68175406,262.79,262.75,0.02889872]
[1737738230134,0.02822577,262.81,262.75,0.02889872]
[1737738230528,3.8051,262.77,262.75,0.02889872]
[1737738231722,3.8065,262.67,262.63,4.85597406]
[1737738231925,9.04758261,262.72,262.64,3.0351304]
[1737738232220,9.04758261,262.68,262.52,9.04758261]
[1737738232519,9.04758261,262.68,262.53,13.963414]
[1737738232724,9.04758261,262.68,262.54,13.963414]
[1737738232923,0.0279743,262.63,262.58,0.0242979]
[1737738233119,0.0279743,262.63,262.59,7.89236443]
[1737738233318,0.0279743,262.63,262.6,7.89236443]
[1737738233518,0.0279743,262.63,262.61,3.03552478]
[1737738233721,0.0279743,262.63,262.62,3.03552478]
[1737738234731,0.0279743,262.63,262.58,0.0242979]
[1737738235028,0.0279743,262.63,262.59,3.07142833]
[1737738235229,0.0279743,262.63,262.58,0.0242979]
[1737738235425,3.8074,262.61,262.59,3.07133556]
[1737738235620,3.8074,262.61,262.58,0.0242979]
[1737738235823,3.8074,262.61,262.59,3.07129137]
[1737738236027,3.8074,262.61,262.58,0.0242979]
[1737738236327,3.8350743,262.63,262.59,3.07129436]
[1737738236629,0.0279743,262.63,262.58,0.0242979]
[1737738236824,0.0279743,262.63,262.59,3.07180292]
[1737738237025,0.0279743,262.63,262.6,3.07180292]
[1737738237219,0.0279743,262.63,262.58,0.0242979]
[1737738238024,0.0279743,262.63,262.59,3.01313259]
[1737738238220,0.0279743,262.63,262.6,3.01313259]
[1737738238424,0.0279743,262.63,262.61,3.01313259]
[1737738238625,0.0279743,262.63,262.62,3.01339608]
[1737738238826,0.0279743,262.63,262.58,0.0242979]
[1737738239030,0.0279743,262.63,262.59,2.96446271]
[1737738239229,0.0279743,262.63,262.6,2.96446271]
[1737738239430,0.0279743,262.63,262.61,2.96446271]
[1737738239631,0.0279743,262.63,262.62,2.96486478]
[1737738239835,0.0279743,262.63,262.58,0.0242979]
[1737738240026,0.0279743,262.63,262.59,2.96488894]
[1737738240229,0.0279743,262.63,262.58,0.0242979]
[1737738240529,9.07555691,262.63,262.58,0.0242979]
[1737738240735,0.0279743,262.63,262.59,2.96511918]
[1737738240933,0.0279743,262.63,262.6,2.96511918]
[1737738241131,0.0279743,262.63,262.61,2.96466681]
[1737738241331,0.0279743,262.63,262.62,2.96466681]
[1737738241734,2.84,262.69,262.62,7.70836494]
[1737738241932,2.84,262.69,262.63,2.96466681]
[1737738242235,2.84,262.69,262.62,10.68662844]
[1737738242934,0.02458799,262.68,262.63,2.9918037]
[1737738243129,0.02458799,262.68,262.64,2.96530825]
[1737738243331,3.8066,262.66,262.65,2.96539975]
[1737738243534,3.8066,262.66,262.63,0.02649545]
[1737738243734,3.8066,262.66,262.64,7.0767567]
[1737738243935,3.8066,262.66,262.64,4.11130632]
[1737738244836,3.8067,262.65,262.63,0.02649545]
[1737738245032,0.02458799,262.68,262.63,0.02649545]
[1737738245427,3.8069,262.65,262.63,0.02649545]
[1737738246237,3.8069,262.64,262.63,0.02649545]
[1737738246638,9.04758261,262.67,262.53,4.71330659]
[1737738246841,9.04758261,262.63,262.54,12.05666888]
[1737738247041,9.04758261,262.59,262.55,2.96686228]
[1737738247240,9.04758261,262.59,262.56,2.96686228]
[1737738247539,3.8083,262.55,262.53,4.71330659]
[1737738247733,3.8083,262.55,262.48,2.5051]
[1737738247734,3.8083,262.55,262.54,7.71552968]
[1737738247940,3.8083,262.55,262.54,2.96751004]
[1737738248333,3.8083,262.55,262.51,0.0269815]
[1737738248641,3.8083,262.55,262.52,2.92332091]
[1737738248843,3.8083,262.55,262.53,2.92332091]
[1737738249042,3.8085,262.53,262.52,4.08628523]
[1737738249342,3.8085,262.53,262.52,2.04186938]
[1737738249537,3.8086,262.52,262.51,0.0269815]
[1737738250244,3.8092,262.48,262.47,0.22759]
[1737738250446,9.04758261,262.48,262.38,4.71330659]
[1737738250641,9.04758261,262.42,262.39,2.83814121]
[1737738250837,9.04758261,262.42,262.4,2.83814121]
[1737738251042,9.04758261,262.5,262.39,6.39961127]
[1737738251346,0.02405708,262.47,262.42,0.02647518]
[1737738252542,2.76354417,262.46,262.42,0.02647518]
[1737738252846,2.76354417,262.45,262.42,0.02647518]
[1737738253236,2.76354417,262.44,262.42,0.02647518]
[1737738253843,2.76354417,262.43,262.42,0.02647518]
[1737738254342,0.74874417,262.43,262.42,2.70685512]
[1737738255638,0.74874417,262.43,262.42,0.02647518]
[1737738255844,0.74874417,262.43,262.42,2.70654051]
[1737738256342,0.74874417,262.43,262.42,0.02647518]
[1737738256542,0.74874417,262.43,262.42,2.70593903]
[1737738256943,0.02405708,262.47,262.42,2.70593903]
[1737738257137,0.02405708,262.47,262.42,0.02647518]
[1737738257446,0.02405708,262.47,262.43,2.67915624]
[1737738257645,0.02405708,262.47,262.44,3.8097]
[1737738257939,9.04758261,262.6,262.42,0.02647518]
[1737738258144,9.04758261,262.6,262.51,3.8087]
[1737738258345,9.04758261,262.6,262.44,9.04758261]
[1737738258541,2.86,262.62,262.45,6.69903633]
[1737738258744,2.86,262.62,262.46,6.69893371]
[1737738258943,2.86,262.62,262.47,6.69893371]
[1737738259140,0.02764318,262.57,262.51,0.02550249]
[1737738259338,0.02764318,262.57,262.52,2.67851078]
[1737738259539,0.02764318,262.57,262.51,0.02550249]
[1737738259742,0.02764318,262.57,262.52,2.67852101]
[1737738259942,0.02764318,262.57,262.53,2.67852101]
[1737738260144,9.04758261,262.64,262.52,1.2631]
[1737738260339,9.04758261,262.64,262.53,2.6788408]
[1737738260548,9.04758261,262.64,262.54,6.4870408]
[1737738260752,9.04758261,262.64,262.55,2.6788408]
[1737738260943,9.04758261,262.64,262.52,1.2631]
[1737738261149,9.04758261,262.6,262.52,1.2631]
[1737738261446,9.04758261,262.6,262.55,0.02409798]
[1737738261648,3.808,262.56,262.55,0.02409798]
[1737738261849,12.85558261,262.56,262.55,0.02409798]
[1737738262150,9.04758261,262.56,262.55,0.02409798]
[1737738263248,3.808,262.56,262.55,0.02409798]
[1737738264746,3.8089,262.5,262.46,1.278]
[1737738264950,9.04758261,262.52,262.41,1.2631]
[1737738265346,9.04758261,262.48,262.41,1.2631]
[1737738265552,9.04758261,262.44,262.26,9.04758261]
[1737738265853,9.04758261,262.44,262.23,192.0]
[1737738265854,3.8108,262.37,262.27,6.70254647]
[1737738266054,3.8108,262.37,262.32,0.0285199]
[1737738266350,3.8111,262.35,262.33,2.68005492]
[1737738266555,9.04758261,262.36,262.32,0.0285199]
[1737738267350,2.86768668,262.38,262.32,0.0285199]
[1737738269456,2.86768668,262.38,262.33,3.8113]
[1737738269659,2.72580042,262.37,262.33,3.8113]
[1737738269959,2.72580042,262.37,262.32,0.0285199]
[1737738270656,2.72580042,262.36,262.32,0.0285199]
[1737738271058,2.72580042,262.35,262.32,0.0285199]
[1737738271956,2.72580042,262.37,262.32,0.0285199]
[1737738273158,2.72580042,262.36,262.32,0.0285199]
[1737738274258,12.85878261,262.34,262.32,0.0285199]
[1737738274855,9.04758261,262.34,262.18,1.3288]
[1737738275055,9.04758261,262.27,262.15,1.2465]
[1737738275755,3.8129,262.23,262.15,1.2465]
[1737738275963,2.72580042,262.26,262.15,1.2465]
[1737738276262,0.02637211,262.22,262.16,0.02928932]
[1737738276659,2.72580042,262.21,262.16,0.02928932]
[1737738277458,0.02637211,262.22,262.16,0.02928932]
[1737738277459,2.72580042,262.2,262.16,0.02928932]
[1737738278158,2.72580042,262.19,262.16,0.02928932]
[1737738278662,0.02637211,262.22,262.16,0.02928932]
[1737738278663,6.53940042,262.18,262.16,0.02928932]
[1737738279655,2.72580042,262.17,262.16,0.02928932]
[1737738282261,2.72580042,262.17,262.07,3.8151]
[1737738282762,2.72580042,262.16,262.07,3.8151]
[1737738282963,2.72580042,262.16,262.04,2.38775932]
[1737738283456,0.02684986,262.13,262.07,0.0277356]
[1737738283961,3.815,262.08,262.07,0.0277356]
[1737738284764,6.54080042,262.08,262.07,0.0277356]
[1737738284965,3.8155,262.05,261.93,3.8171]
[1737738285160,14.53486716,262.04,261.92,1.3032]
[1737738285561,17.26066758,262.04,261.92,1.3032]
[1737738286066,0.02698281,262.01,261.95,0.02421692]
[1737738286966,2.72580042,262.0,261.95,0.02421692]
[1737738287561,2.72580042,261.99,261.95,0.02421692]
[1737738288170,0.02698281,262.01,261.95,0.02421692]
[1737738288761,2.68613915,262.0,261.95,0.02421692]
[1737738289072,2.68613915,262.0,261.95,3.84111692]
[1737738289467,0.02698281,262.01,261.95,3.84111692]
[1737738289971,0.02698281,262.01,261.96,3.8167]
[1737738290267,2.86,262.04,261.95,0.02421692]
[1737738291068,2.68575615,262.03,261.95,0.02421692]
[1737738291572,0.02803001,262.02,261.95,0.02421692]
[1737738291869,2.71378616,262.02,261.95,0.02421692]
[1737738292367,2.68575615,262.01,261.95,0.02421692]
[1737738292774,0.66945615,262.01,261.95,0.02421692]
[1737738293075,0.02803001,262.02,261.95,0.02421692]
[1737738293477,0.02803001,262.02,261.99,3.8163]
[1737738293677,17.39486716,262.13,261.96,2.59339916]
[1737738293872,2.86,262.13,261.97,2.59326309]
[1737738294072,14.53486716,262.18,261.96,3.94896922]
[1737738294073,2.86,262.17,261.96,18.48383638]
[1737738294273,2.86,262.17,261.97,2.59353411]
[1737738294581,1.3306,262.21,261.96,14.53486716]
[1737738294871,0.02924671,262.1,262.04,0.02651232]
[1737738295376,0.02924671,262.1,261.96,14.53486716]
[1737738295576,0.02924671,262.1,262.04,0.02927094]
[1737738299485,3.84404671,262.1,262.04,0.02927094]
[1737738299781,9.09169525,262.09,262.04,0.02927094]
[1737738300483,0.02924671,262.1,262.04,0.02927094]
[1737738301980,9.09169525,262.05,262.04,0.02927094]
[1737738302187,11.95169525,262.05,261.93,0.80767]
[1737738302388,9.09169525,262.0,261.93,0.80767]
[1737738302886,3.8165,261.98,261.93,0.80767]
[1737738303395,0.02413065,261.98,261.93,0.83639164]
[1737738305293,2.66418843,261.97,261.93,0.83639164]
[1737738305998,2.66418843,261.97,261.94,3.817]
[1737738306188,2.66418843,261.96,261.94,3.817]
[1737738306494,2.66418843,261.96,261.93,0.83639164]
[1737738306898,2.66418843,261.97,261.93,0.83639164]
[1737738308097,9.09169525,261.96,261.93,0.83639164]
[1737738308396,3.8169,261.95,261.93,0.83639164]
[1737738308593,9.09169525,261.96,261.81,2.60593101]
[1737738308789,3.8177,261.9,261.8,1.2836]
[1737738309290,2.66418843,261.89,261.8,1.2836]
[1737738309793,9.11982917,261.87,261.82,0.02923181]
[1737738309990,9.09169525,261.83,261.66,1.2154]
[1737738310194,9.09169525,261.78,261.64,1.2496]
[1737738310496,2.66418843,261.77,261.66,159.7580121]
[1737738310895,9.09169525,261.74,261.66,159.7580121]
[1737738311189,2.66418843,261.73,261.69,0.0241176]
[1737738311897,2.66418843,261.72,261.69,0.0241176]
[1737738312299,14.58718299,261.7,261.66,159.7580121]
[1737738312596,14.58718299,261.7,261.66,55.49746115]
[1737738312995,3.8209,261.68,261.66,51.19406115]
[1737738313201,3.53811841,261.67,261.66,20.5720993]
[1737738313403,18.1253014,261.67,261.49,1.2869]
[1737738313695,3.8214,261.65,261.64,0.02818246]
[1737738313900,2.66418843,261.66,261.49,1.2869]
[1737738314103,0.02639302,261.61,261.49,1.2869]
[1737738314301,0.02639302,261.61,261.55,0.02417073]
[1737738314800,2.66418843,261.6,261.55,0.02417073]
[1737738315601,2.66418843,261.59,261.55,0.02417073]
[1737738316409,2.66418843,261.58,261.55,0.02417073]
[1737738316803,2.66418843,261.57,261.55,0.02417073]
[1737738317498,0.02639302,261.61,261.38,14.58718299]
[1737738317499,2.66418843,261.56,261.38,14.58718299]
[1737738317697,2.66418843,261.56,261.43,14.58718299]
[1737738317996,2.66418843,261.56,261.52,3.8231]
[1737738318300,0.64548843,261.55,261.43,14.58718299]
[1737738318506,0.64548843,261.55,261.51,0.02782466]
[1737738318694,0.02795608,261.57,261.53,3.8229]
[1737738318895,0.02795608,261.57,261.51,0.02782466]
[1737738319099,2.86,261.66,261.51,0.02782466]
[1737738319300,2.86,261.66,261.48,14.58718299]
[1737738320004,2.86,261.66,261.51,3.8233]
[1737738320206,0.02702556,261.6,261.54,0.02641187]
[1737738320407,3.8222,261.59,261.54,0.02641187]
[1737738320605,0.02702556,261.6,261.54,0.02641187]
[1737738322407,0.02702556,261.6,261.54,3.84921187]
[1737738322804,0.02702556,261.6,261.54,0.02641187]
[1737738323008,0.02702556,261.6,261.55,3.8226]
[1737738323206,0.02702556,261.6,261.54,0.02641187]
[1737738324304,0.02702556,261.6,261.55,3.8227]
[1737738324508,0.02702556,261.6,261.54,0.02641187]
[1737738324809,0.02702556,261.6,261.59,3.8221]
[1737738325002,2.86,261.75,261.54,14.61359486]
[1737738325204,2.86,261.75,261.54,14.58718299]
[1737738325408,2.86,261.75,261.66,3.8211]
[1737738325606,2.86,261.75,261.54,14.58718299]
[1737738325804,14.58718299,261.77,261.54,14.58718299]
[1737738326309,14.58718299,261.77,261.63,0.02502271]
[1737738326310,0.02734337,261.68,261.63,0.02502271]
[1737738326500,3.84824337,261.68,261.63,0.02502271]
[1737738326807,0.02734337,261.68,261.63,0.02502271]
[1737738327205,14.58718299,261.67,261.63,0.02502271]
[1737738327402,14.58718299,261.67,261.5,1.2235]
[1737738327603,14.58718299,261.62,261.5,1.2235]
[1737738327807,3.8224,261.58,261.5,1.2235]
[1737738328006,2.86,261.61,261.5,1.2235]
[1737738328603,0.02503246,261.58,261.53,0.02523464]
[1737738330311,2.61926955,261.57,261.53,0.02523464]
[1737738331110,0.02503246,261.58,261.53,0.02523464]
[1737738332310,3.8225,261.57,261.53,0.02523464]
[1737738332610,0.02503246,261.58,261.53,0.02523464]
[1737738332912,2.61765906,261.56,261.53,0.02523464]
[1737738333611,0.02503246,261.58,261.53,0.02523464]
[1737738334411,0.02503246,261.58,261.53,3.84823464]
[1737738334606,0.02503246,261.58,261.53,0.02523464]
[1737738337207,3.84743246,261.58,261.53,0.02523464]
[1737738337413,0.02503246,261.58,261.53,0.02523464]
[1737738338413,0.02503246,261.58,261.43,9.37916115]
[1737738338716,0.67665302,261.66,261.53,14.58718299]
[1737738338915,0.67665302,261.66,261.64,3.8213]
[1737738339116,16.53999314,261.72,261.63,14.58718299]
[1737738339316,7.63398594,261.73,261.68,14.58718299]
[1737738339513,5.12684339,261.73,261.68,14.58718299]
[1737738340017,15.38053019,261.74,261.72,3.8203]
[1737738340315,62.75168865,261.77,261.73,14.58718299]
[1737738340519,50.43318984,261.79,261.78,3.8194]
[1737738340716,50.43318984,261.79,261.78,18.40658299]
[1737738341418,43.7227471,261.81,261.8,3.8191]
[1737738342217,6.644e-05,261.81,261.8,3.8191]
[1737738342817,14.58718299,262.08,261.8,3.8191]
[1737738343019,2.63199334,262.07,261.84,14.58718299]
[1737738343219,3.8163,262.0,261.84,14.58718299]
[1737738343413,2.63199334,262.07,261.84,14.58718299]
[1737738343817,2.63199334,262.06,261.86,23.63943261]
[1737738344024,0.02693419,261.98,261.93,0.02585233]
[1737738345117,0.02693419,261.98,261.94,3.817]
[1737738345524,23.63943261,262.15,261.94,3.817]
[1737738346022,3.8151,262.08,261.94,3.817]
[1737738346523,27.44573261,262.2,261.96,23.63943261]
[1737738346818,0.02933242,262.11,262.05,0.02815752]
[1737738347023,0.02933242,262.11,262.05,3.84355752]
[1737738347220,0.02933242,262.11,262.05,0.02815752]
[1737738348323,3.8152,262.07,262.05,0.02815752]
[1737738348623,23.63943261,262.09,261.86,23.63943261]
[1737738349326,23.63943261,262.04,261.85,35.40726595]
[1737738349924,0.02769465,261.97,261.92,0.02422424]
[1737738350622,3.8172,261.93,261.92,0.02422424]
[1737738352130,3.8173,261.93,261.78,3.8193]
[1737738352426,2.62297927,261.93,261.76,23.63943261]
[1737738352829,23.63943261,261.93,261.69,23.63943261]
[1737738353221,3.8192,261.8,261.78,0.02577658]
[1737738353727,3.8189,261.82,261.71,3.8204]
[1737738353923,0.02434963,261.84,261.76,0.02840391]
[1737738354120,23.63943261,261.88,261.76,0.02840391]
[1737738354321,0.02867791,261.83,261.71,3.8204]
[1737738354522,0.02867791,261.83,261.79,0.02533932]
[1737738354727,23.63943261,261.88,261.79,0.02533932]
[1737738354922,3.819,261.81,261.79,0.02533932]
[1737738355127,23.51613042,261.83,261.79,0.02533932]
[1737738356031,2.65033192,261.86,261.79,0.02533932]
[1737738356734,0.02744154,261.86,261.79,0.02533932]
[1737738359037,0.02744154,261.86,261.84,3.8185]
[1737738359233,0.02744154,261.86,261.79,0.02533932]
[1737738359733,23.63943261,261.92,261.79,0.02533932]
[1737738360234,3.818,261.88,261.79,0.02533932]
[1737738360535,2.62129021,261.91,261.79,0.02533932]
[1737738360736,2.62129021,261.91,261.85,3.8183]
[1737738360935,0.02797096,261.88,261.78,23.63943261]
[1737738361137,0.02797096,261.88,261.85,0.02862916]
[1737738361335,0.02797096,261.88,261.85,3.84692916]
[1737738361537,0.02797096,261.88,261.85,0.02862916]
[1737738362038,20.94341412,261.87,261.69,192.0]
[1737738362229,22.23551412,261.87,261.64,159.7580121]
[1737738362428,22.23551412,261.87,261.63,23.63943261]
[1737738362632,22.23551412,261.87,261.71,3.8203]
[1737738363030,3.8188,261.83,261.71,3.8203]
[1737738363230,0.02512092,261.82,261.76,0.02473313]
[1737738364539,23.66455353,261.82,261.59,201.94518571]
[1737738364740,3.8194,261.78,261.67,3.8209]
[1737738365041,23.63943261,261.77,261.59,201.94518571]
[1737738365236,23.63943261,261.77,261.59,45.33864886]
[1737738365642,0.02768248,261.71,261.65,0.02915555]
[1737738365842,0.02768248,261.71,261.67,3.8209]
[1737738366048,0.02768248,261.71,261.65,0.02915555]
[1737738366443,0.02768248,261.71,261.67,3.821]
[1737738366639,0.02768248,261.71,261.65,0.02915555]
[1737738367658,0.02768248,261.71,261.67,3.821]
[1737738367846,0.02768248,261.71,261.65,0.02915555]
[1737738368249,0.02768248,261.71,261.69,3.8207]
[1737738368847,0.02768248,261.71,261.65,0.02915555]
[1737738369040,1.25338248,261.71,261.65,0.02915555]
[1737738369241,23.63943261,261.67,261.46,59.04669856]
[1737738369547,23.63943261,261.67,261.46,180.24596946]
[1737738369748,14.59393626,261.66,261.46,156.60653685]
[1737738370541,0.027635,261.63,261.58,0.0274476]
[1737738370948,0.027635,261.63,261.46,156.60653685]
[1737738371343,14.59393626,261.66,261.53,3.823]
[1737738371543,14.59393626,261.66,261.46,156.60653685]
[1737738371544,14.59393626,261.61,261.46,156.60653685]
[1737738371743,23.72623685,261.6,261.53,3.823]
[1737738372046,4.2676,261.7,261.48,23.72623685]
[1737738372246,8.483e-05,261.59,261.58,3.8223]
[1737738372647,1.2876,261.7,261.53,23.72623685]
[1737738373251,3.821,261.67,261.6,3.822]
[1737738373445,0.02435079,261.64,261.6,3.822]
[1737738374950,0.02435079,261.64,261.59,0.02830171]
[1737738375347,0.02435079,261.64,261.62,3.8217]
[1737738375651,27.54513685,261.82,261.59,0.02830171]
[1737738375852,2.5698,261.81,261.77,3.8195]
[1737738376146,1.2731,261.81,261.63,23.72623685]
[1737738376352,23.72623685,261.87,261.64,0.0834]
[1737738376552,2.6318212,261.8,261.64,0.0834]
[1737738376951,0.02822069,261.75,261.74,3.82]
[1737738377151,0.02822069,261.75,261.69,0.0280027]
[1737738377449,0.02822069,261.75,261.56,27.95825135]
[1737738377648,0.02822069,261.75,261.7,3.8204]
[1737738377846,27.54573685,261.77,261.56,27.95825135]
[1737738378051,0.02520697,261.75,261.7,0.02891193]
[1737738378250,23.72623685,261.77,261.71,3.8204]
[1737738378452,0.02537002,261.75,261.7,0.02445186]
[1737738378851,23.72623685,261.77,261.56,27.95825135]
[1737738379046,0.02819396,261.75,261.7,0.02745873]